fUST/lending_fUST_20241221
["ID","MTS","AMOUNT","RATE_DAILY","PERIOD"]
[346140834,1734741032994,-443.80337897,0.00020973,2]
[346140836,1734741033005,-500.0,0.00020973,2]
[346140838,1734741033015,-160.35911371,0.00020973,2]
[346140840,1734741033024,-150.49188472,0.00020973,2]
[346140843,1734741033034,-500.0,0.00020973,2]
[346140845,1734741033044,-500.0,0.00020973,2]
[346140847,1734741033053,-461.68806688,0.00020973,2]
[346140861,1734741033182,-39.32263011,0.00020973,2]
[346140863,1734741033192,-610.40982623,0.00020973,2]
[346140865,1734741033201,-500.0,0.00020973,2]
[346140867,1734741033211,-500.0,0.00020973,2]
[346140869,1734741033221,-500.0,0.00020973,2]
[346140871,1734741033231,-500.0,0.00020973,2]
[346140874,1734741033240,-265.89080114,0.00020973,2]
[346140876,1734741033250,-500.0,0.00020973,2]
[346140878,1734741033260,-500.58776191,0.00020973,2]
[346140880,1734741033270,-461.78898054,0.00020973,2]
[346140997,1734741038289,-38.21101946,0.00020973,2]
[346140999,1734741038299,-161.72210346,0.00020973,2]
[346141001,1734741038310,-500.0,0.00020973,2]
[346141003,1734741038319,-366.48812345,0.00020973,2]
[346141005,1734741038328,-500.0,0.00020973,2]
[346141007,1734741038338,-500.0,0.00020973,2]
[346141009,1734741038348,-500.0,0.00020973,2]
[346141011,1734741038357,-606.93277896,0.00020973,2]
[346141013,1734741038367,-155.62949231,0.00020997,2]
[346141015,1734741038376,-500.0,0.00020997,2]
[346141017,1734741038386,-640.02253827,0.00020997,2]
[346141019,1734741038395,-500.0,0.00020997,2]
[346141021,1734741038405,-500.0,0.00020997,2]
[346141023,1734741038417,-500.0,0.00020997,2]
[346141025,1734741038427,-500.0,0.00020997,2]
[346141027,1734741038436,-500.0,0.00020997,2]
[346141029,1734741038446,-500.0,0.00020997,2]
[346141031,1734741038455,-500.0,0.00020997,2]
[346141033,1734741038464,-500.0,0.00020997,2]
[346141035,1734741038473,-500.0,0.00020997,2]
[346141037,1734741038482,-500.0,0.00020997,2]
[346141039,1734741038492,-489.56068,0.00020997,2]
[346141041,1734741038502,-500.0,0.00020997,2]
[346141043,1734741038512,-500.0,0.00020997,2]
[346141045,1734741038521,-500.0,0.00020997,2]
[346141047,1734741038530,-246.40124741,0.00020997,2]
[346141050,1734741038540,-485.24240012,0.00020997,2]
[346141052,1734741038550,-500.0,0.00020997,2]
[346141054,1734741038560,-500.0,0.00020997,2]
[346141056,1734741038570,-51.09381009,0.00020997,2]
[346141143,1734741043353,-501.11748658,0.00020973,2]
[346141144,1734741043363,-215.21689146,0.00020973,2]
[346141145,1734741043374,-448.90618991,0.00020997,2]
[346141146,1734741043384,-500.0,0.00020997,2]
[346141147,1734741043394,-500.0,0.00020997,2]
[346141148,1734741043403,-500.0,0.00020997,2]
[346141149,1734741043412,-500.0,0.00020997,2]
[346141150,1734741043422,-500.0,0.00020997,2]
[346141151,1734741043431,-500.0,0.00020997,2]
[346141152,1734741043440,-500.0,0.00020997,2]
[346141153,1734741043449,-500.0,0.00020997,2]
[346141154,1734741043459,-500.0,0.00020997,2]
[346141155,1734741043468,-139.2626705,0.00020997,2]
[346141177,1734741046396,-500.0,0.00020973,2]
[346141178,1734741046406,-360.7373295,0.00020997,2]
[346141179,1734741046416,-500.0,0.00020997,2]
[346141180,1734741046426,-500.0,0.00020997,2]
[346141181,1734741046436,-500.0,0.00020997,2]
[346141182,1734741046445,-500.0,0.00020997,2]
[346141183,1734741046455,-500.0,0.00020997,2]
[346141184,1734741046465,-500.0,0.00020997,2]
[346141185,1734741046474,-500.0,0.00020997,2]
[346141186,1734741046483,-500.0,0.00020997,2]
[346141187,1734741046492,-500.0,0.00020997,2]
[346141188,1734741046502,-500.0,0.00020997,2]
[346141189,1734741046511,-500.0,0.00020997,2]
[346141190,1734741046521,-500.0,0.00020997,2]
[346141191,1734741046531,-500.0,0.00020997,2]
[346141192,1734741046540,-500.0,0.00020997,2]
[346141193,1734741046549,-500.0,0.00020997,2]
[346141194,1734741046559,-64.54685992,0.00020997,2]
[346141195,1734741046572,-435.45314008,0.00020997,2]
[346141196,1734741046582,-402.20883019,0.00020997,2]
[346141202,1734741467510,7341.64795069,0.00025,120]
[346141204,1734741537269,161.265721,0.00013973,2]
[346141205,1734741945135,-675.52827865,0.00018796,2]
[346141206,1734741946107,-994.65043519,0.00018796,2]
[346141207,1734741946127,-185.5081126,0.00018986,2]
[346141208,1734741946148,-209.079359,0.00019601,2]
[346141209,1734741946169,-50.63485175,0.00019669,2]
[346141210,1734742050215,-129.45893265,0.00019669,2]
[346141211,1734742050237,-788.8381009,0.00019792,2]
[346141212,1734742050261,-52.50600716,0.00019967,2]
[346141213,1734742161114,-197.49399284,0.00019967,2]
[346141214,1734742161136,-790.39500716,0.00019991,2]
[346141264,1734742232983,-441.006,0.0002082,2]
[346141266,1734742232993,-214.672334,0.00020873,2]
[346141268,1734742233003,-1142.1563139,0.00020898,2]
[346141270,1734742233012,-103.1501182,0.000209,2]
[346141273,1734742233023,-247.7295102,0.000209,2]
[346141274,1734742233032,-300.0,0.00020972,2]
[346141276,1734742233042,-300.0,0.00020972,2]
[346141277,1734742233054,-500.0,0.00020973,2]
[346141279,1734742233063,-500.0,0.00020973,2]
[346141281,1734742233072,-481.30409407,0.00020973,2]
[346141554,1734742240559,-18.69590593,0.00020973,2]
[346141556,1734742240569,-500.0,0.00020973,2]
[346141558,1734742240578,-500.0,0.00020973,2]
[346141560,1734742240587,-500.0,0.00020973,2]
[346141562,1734742240596,-500.0,0.00020973,2]
[346141564,1734742240605,-500.0,0.00020973,2]
[346141566,1734742240614,-500.0,0.00020973,2]
[346141568,1734742240623,-160.0,0.00020997,2]
[346141570,1734742240633,-35627.16636083,0.00020998,2]
[346141572,1734742240642,-6131.28178604,0.00020998,2]
[346141834,1734742460433,161.265721,0.00013973,2]
[346141845,1734743145127,-1461.37760552,0.00019,3]
[346141846,1734743157088,-725.21339008,0.00019,3]
[346141847,1734743228134,-954.7711561,0.00019,3]
[346141848,1734743251077,-1306.36760921,0.00019,3]
[346141849,1734743348124,-2495.24023909,0.00019,3]
[346141850,1734743348146,-3349.88090046,0.00019259,2]
[346141851,1734743348167,-162.99679456,0.00019651,2]
[346141852,1734743356109,-226.91474744,0.00019651,2]
[346141853,1734743356129,-201.2425478,0.00019945,2]
[346141854,1734743356149,-247.4580593,0.00019957,2]
[346141855,1734743356168,-300.0,0.00019985,2]
[346141856,1734743356188,-300.0,0.00019985,2]
[346141857,1734743356209,-6803.69250316,0.00019986,2]
[346141859,1734743369126,-4707.10414944,0.00019986,2]
[346141860,1734743369148,-42462.57126965,0.0002,2]
[346141915,1734743432869,-1563.4600808,0.00019954,2]
[346141917,1734743432880,-83.53197099,0.0002,2]
[346141919,1734743432889,-186.39468034,0.0002082,2]
[346141921,1734743432901,-249.95931966,0.0002082,2]
[346141923,1734743432910,-1473.26808487,0.00020873,2]
[346141925,1734743432921,-1486.15675801,0.00020894,2]
[346141927,1734743432931,-182.1321578,0.000209,2]
[346141929,1734743432942,-323.490006,0.00020904,2]
[346141931,1734743432952,-418.87454715,0.0002098,2]
[346141933,1734743432961,-190.819852,0.00020986,2]
[346141935,1734743432971,-170.10072172,0.00020997,2]
[346141937,1734743432980,-300.0,0.00020997,2]
[346141939,1734743432989,-12027.75985529,0.00020998,2]
[346142348,1734743438720,-500.0,0.00020997,2]
[346142349,1734743438730,-500.0,0.00020997,2]
[346142350,1734743438739,-500.0,0.00020997,2]
[346142351,1734743438750,-500.0,0.00020997,2]
[346142352,1734743438759,-500.0,0.00020997,2]
[346142353,1734743438769,-500.0,0.00020997,2]
[346142354,1734743438778,-500.0,0.00020997,2]
[346142355,1734743438788,-500.0,0.00020997,2]
[346142356,1734743438798,-500.0,0.00020997,2]
[346142357,1734743438807,-500.0,0.00020997,2]
[346142358,1734743438819,-324.22683165,0.00020997,2]
[346142359,1734743438834,-175.77316835,0.00020997,2]
[346142360,1734743438843,-500.0,0.00020997,2]
[346142361,1734743438853,-500.0,0.00020997,2]
[346142362,1734743438862,-350.84448704,0.00020997,2]
[346142415,1734743440919,-149.15551296,0.00020997,2]
[346142416,1734743440929,-500.0,0.00020997,2]
[346142417,1734743440939,-500.0,0.00020997,2]
[346142418,1734743440948,-500.0,0.00020997,2]
[346142419,1734743440958,-500.0,0.00020997,2]
[346142420,1734743440967,-500.0,0.00020997,2]
[346142421,1734743440976,-630.71761123,0.00020997,2]
[346142422,1734743440986,-500.0,0.00020997,2]
[346142423,1734743440995,-500.0,0.00020997,2]
[346142424,1734743441004,-500.0,0.00020997,2]
[346142425,1734743441013,-500.0,0.00020997,2]
[346142426,1734743441024,-500.0,0.00020997,2]
[346142427,1734743441033,-500.0,0.00020997,2]
[346142428,1734743441043,-500.0,0.00020997,2]
[346142429,1734743441052,-500.0,0.00020997,2]
[346142431,1734743441061,-500.0,0.00020997,2]
[346142433,1734743441071,-500.0,0.00020997,2]
[346142434,1734743441080,-500.0,0.00020997,2]
[346142436,1734743441089,-500.0,0.00020997,2]
[346142438,1734743441098,-500.0,0.00020997,2]
[346142440,1734743441108,-500.0,0.00020997,2]
[346142442,1734743441117,-500.0,0.00020997,2]
[346142468,1734743441359,-500.0,0.00020997,2]
[346142470,1734743441370,-500.0,0.00020997,2]
[346142472,1734743441380,-500.0,0.00020997,2]
[346142474,1734743441390,-500.0,0.00020997,2]
[346142477,1734743441400,-500.0,0.00020997,2]
[346142479,1734743441411,-500.0,0.00020997,2]
[346142481,1734743441421,-500.0,0.00020997,2]
[346142483,1734743441430,-500.0,0.00020997,2]
[346142485,1734743441440,-500.0,0.00020997,2]
[346142487,1734743441450,-500.0,0.00020997,2]
[346142489,1734743441460,-500.0,0.00020997,2]
[346142491,1734743441470,-500.0,0.00020997,2]
[346142493,1734743441480,-558.83952133,0.00020997,2]
[346142495,1734743441491,-500.0,0.00020997,2]
[346142497,1734743441501,-500.0,0.00020997,2]
[346142499,1734743441511,-158.61579381,0.00020997,2]
[346142502,1734743441524,-187.13058668,0.00020997,2]
[346142504,1734743441534,-29428.38282872,0.00020998,2]
[346142506,1734743441544,-5806.24607022,0.00020998,2]
[346142508,1734743441554,-155313.37971882,0.00020998,7]
[346142693,1734743567454,162.829269,0.00013973,2]
[346142695,1734743777428,3000.0,0.00025,60]
[346142696,1734743810257,450.0,0.00025,60]
[346142697,1734743910012,-4357.19891326,0.00019751,2]
[346142698,1734743910038,-418.162,0.0001995,2]
[346142699,1734743910062,-399.375495,0.00019971,2]
[346142700,1734744095246,906.16119374,0.0002,2]
[346142701,1734744182674,217.39016863,0.0002,2]
[346142702,1734744243242,403.387,0.0001995,2]
[346142703,1734744263295,250.0,0.00019995,2]
[346142705,1734744335802,24900.0,0.0001997,2]
[346142706,1734744349281,-847.97529347,0.00020383,2]
[346142707,1734744349303,-196.00107369,0.0002069,2]
[346142708,1734744349325,-60.82022657,0.0002069,2]
[346142709,1734744357100,-1033.94784037,0.00020283,2]
[346142710,1734744357120,-103.99695054,0.0002069,2]
[346142711,1734744374211,403.241,0.0001995,2]
[346142712,1734744425189,-1140.97901971,0.00020483,2]
[346142713,1734744425212,-85.38516141,0.0002069,2]
[346142714,1734744430147,-185.06527566,0.0002069,2]
[346142715,1734744430170,-178.39282766,0.00020898,2]
[346142716,1734744430191,-300.0,0.00020992,2]
[346142717,1734744430213,-327.09302422,0.00020993,2]
[346142718,1734744441023,176.044673,0.00019723,2]
[346142720,1734744452737,530.0,0.00025,60]
[346142727,1734744565548,386.491,0.0001995,2]
[346142729,1734744627740,305.909756,0.00019994,2]
[346142770,1734744632058,-178.39282765,0.00020895,2]
[346142771,1734744632067,-178.39282765,0.00020898,2]
[346142774,1734744632077,-2451.09429333,0.00020898,2]
[346142776,1734744632090,-300.0,0.00020991,2]
[346142778,1734744632099,-500.0,0.00020991,2]
[346142780,1734744632108,-500.0,0.00020991,2]
[346142782,1734744632117,-255.15494007,0.00020991,2]
[346142793,1734744632215,-933.45505993,0.00020991,2]
[346142795,1734744632226,-1895.81,0.00020992,2]
[346142797,1734744632239,-500.0,0.00020992,2]
[346142799,1734744632249,-606.99,0.00020992,2]
[346142801,1734744632259,-1938.79,0.00020992,2]
[346142803,1734744632268,-8572.2,0.00020992,2]
[346142805,1734744632277,-2264.85,0.00020992,2]
[346142807,1734744632287,-3795.68,0.00020992,2]
[346142809,1734744632297,-1542.11,0.00020992,2]
[346142811,1734744632307,-13499.73,0.00020992,2]
[346142813,1734744632316,-1358.38583069,0.00020992,2]
[346142910,1734744638187,-122.61465172,0.00020991,2]
[346142912,1734744638198,-377.38534828,0.00020991,2]
[346142914,1734744638208,-443.27416931,0.00020992,2]
[346142916,1734744638218,-918.31,0.00020992,2]
[346142919,1734744638227,-1388.55,0.00020992,2]
[346142921,1734744638239,-497.46008279,0.00020992,2]
[346142922,1734744638249,-500.0,0.00020992,2]
[346142925,1734744638258,-352.63818071,0.00020992,2]
[346142927,1734744638268,-500.0,0.00020992,2]
[346142928,1734744638277,-500.0,0.00020992,2]
[346142930,1734744638287,-513.65,0.00020992,2]
[346142931,1734744638297,-500.0,0.00020992,2]
[346142932,1734744638307,-500.0,0.00020993,2]
[346142933,1734744638316,-500.0,0.00020993,2]
[346142934,1734744638325,-500.0,0.00020993,2]
[346142935,1734744638335,-500.0,0.00020993,2]
[346142936,1734744638344,-500.0,0.00020993,2]
[346142937,1734744638354,-500.0,0.00020993,2]
[346142938,1734744638364,-500.0,0.00020993,2]
[346142939,1734744638373,-500.0,0.00020993,2]
[346142940,1734744638382,-500.0,0.00020993,2]
[346142941,1734744638391,-171.18808763,0.00020993,2]
[346142942,1734744638431,-181.3006904,0.00020993,2]
[346142943,1734744638440,-500.0,0.00020993,2]
[346142944,1734744638448,-500.0,0.00020993,2]
[346142946,1734744638457,-500.0,0.00020993,2]
[346142947,1734744638466,-500.0,0.00020993,2]
[346142949,1734744638476,-500.0,0.00020993,2]
[346142951,1734744638485,-500.0,0.00020993,2]
[346142954,1734744638499,-500.0,0.00020993,2]
[346142956,1734744638508,-500.0,0.00020993,2]
[346142957,1734744638517,-500.0,0.00020993,2]
[346142959,1734744638527,-500.0,0.00020993,2]
[346142961,1734744638536,-500.0,0.00020993,2]
[346142963,1734744638544,-500.0,0.00020993,2]
[346142965,1734744638554,-500.0,0.00020993,2]
[346142967,1734744638563,-500.0,0.00020993,2]
[346142969,1734744638572,-500.0,0.00020993,2]
[346142971,1734744638581,-500.0,0.00020993,2]
[346142973,1734744638590,-500.0,0.00020993,2]
[346142975,1734744638600,-500.0,0.00020993,2]
[346142977,1734744638609,-500.0,0.00020993,2]
[346142979,1734744638618,-500.0,0.00020993,2]
[346142981,1734744638628,-500.0,0.00020993,2]
[346142983,1734744638638,-415.94880825,0.00020993,2]
[346142992,1734744638708,-45.27213146,0.00020993,2]
[346142994,1734744638717,-90.99055533,0.00020993,2]
[346142996,1734744638729,-409.00944467,0.00020993,2]
[346142998,1734744638741,-500.0,0.00020993,2]
[346143000,1734744638751,-500.0,0.00020993,2]
[346143002,1734744638759,-500.0,0.00020993,2]
[346143004,1734744638768,-500.0,0.00020993,2]
[346143006,1734744638777,-500.0,0.00020993,2]
[346143009,1734744638786,-500.0,0.00020993,2]
[346143010,1734744638795,-500.0,0.00020993,2]
[346143012,1734744638804,-500.0,0.00020993,2]
[346143014,1734744638814,-500.0,0.00020993,2]
[346143017,1734744638823,-500.0,0.00020993,2]
[346143019,1734744638832,-500.0,0.00020993,2]
[346143021,1734744638841,-500.0,0.00020993,2]
[346143023,1734744638850,-500.0,0.00020993,2]
[346143025,1734744638859,-500.0,0.00020993,2]
[346143026,1734744638868,-500.0,0.00020993,2]
[346143028,1734744638877,-500.0,0.00020993,2]
[346143031,1734744638886,-500.0,0.00020993,2]
[346143033,1734744638895,-500.0,0.00020993,2]
[346143034,1734744638904,-500.0,0.00020993,2]
[346143037,1734744638913,-500.0,0.00020993,2]
[346143039,1734744638922,-500.0,0.00020993,2]
[346143041,1734744638932,-500.0,0.00020993,2]
[346143042,1734744638941,-500.0,0.00020993,2]
[346143044,1734744638950,-500.0,0.00020993,2]
[346143046,1734744638959,-500.0,0.00020993,2]
[346143048,1734744638969,-500.0,0.00020993,2]
[346143050,1734744638978,-500.0,0.00020993,2]
[346143053,1734744638988,-583.77463943,0.00020993,2]
[346143055,1734744638998,-915.38,0.00020994,2]
[346143057,1734744639007,-9277.15,0.00020994,2]
[346143059,1734744639017,-1346.84,0.00020994,2]
[346143061,1734744639026,-27780.83,0.00020994,2]
[346143063,1734744639035,-508.42,0.00020994,2]
[346143065,1734744639044,-500.0,0.00020994,2]
[346143067,1734744639053,-13365.84,0.00020994,2]
[346143069,1734744639062,-8110.23,0.00020994,2]
[346143070,1734744639071,-588.7,0.00020994,2]
[346143073,1734744639083,-500.0,0.00020994,2]
[346143074,1734744639092,-1718.9,0.00020994,2]
[346143076,1734744639102,-4914.77,0.00020994,2]
[346143078,1734744639111,-716.77,0.00020994,2]
[346143081,1734744639123,-247.326866,0.00020994,2]
[346143083,1734744639132,-247.326866,0.00020994,2]
[346143085,1734744639141,-247.326866,0.00020994,2]
[346143087,1734744639151,-247.326866,0.00020994,2]
[346143089,1734744639162,-500.0,0.00020994,2]
[346143091,1734744639171,-247.326866,0.00020994,2]
[346143093,1734744639180,-247.326866,0.00020994,2]
[346143095,1734744639190,-500.0,0.00020994,2]
[346143097,1734744639199,-247.326866,0.00020994,2]
[346143099,1734744639209,-247.326866,0.00020994,2]
[346143101,1734744639219,-500.0,0.00020994,2]
[346143103,1734744639228,-7491.87,0.00020994,2]
[346143105,1734744639238,-502.56858102,0.00020994,2]
[346143107,1734744639249,-1400.05,0.00020994,2]
[346143109,1734744639258,-3406.23,0.00020994,2]
[346143111,1734744639267,-500.0,0.00020994,2]
[346143113,1734744639276,-3345.69,0.00020994,2]
[346143115,1734744639286,-502.51306184,0.00020994,2]
[346143117,1734744639295,-500.0,0.00020994,2]
[346143119,1734744639304,-818.65,0.00020994,2]
[346143121,1734744639313,-1281.59,0.00020994,2]
[346143123,1734744639324,-500.0,0.00020994,2]
[346143125,1734744639334,-500.0,0.00020994,2]
[346143127,1734744639344,-6860.19,0.00020994,2]
[346143129,1734744639353,-3299.04,0.00020994,2]
[346143131,1734744639363,-500.0,0.00020994,2]
[346143133,1734744639373,-549.83,0.00020994,2]
[346143135,1734744639382,-749.7,0.00020994,2]
[346143137,1734744639392,-637.4,0.00020994,2]
[346143139,1734744639401,-500.0,0.00020994,2]
[346143141,1734744639410,-500.0,0.00020994,2]
[346143143,1734744639420,-5581.62,0.00020994,2]
[346143145,1734744639430,-6284.13,0.00020994,2]
[346143147,1734744639439,-500.0,0.00020995,2]
[346143149,1734744639449,-500.0,0.00020995,2]
[346143151,1734744639458,-500.0,0.00020995,2]
[346143153,1734744639468,-500.0,0.00020995,2]
[346143155,1734744639477,-500.0,0.00020995,2]
[346143157,1734744639487,-500.0,0.00020995,2]
[346143159,1734744639497,-500.0,0.00020995,2]
[346143161,1734744639506,-500.0,0.00020995,2]
[346143163,1734744639516,-500.0,0.00020995,2]
[346143165,1734744639525,-500.0,0.00020995,2]
[346143167,1734744639535,-500.0,0.00020995,2]
[346143169,1734744639546,-500.0,0.00020995,2]
[346143172,1734744639556,-500.0,0.00020995,2]
[346143174,1734744639566,-500.0,0.00020995,2]
[346143176,1734744639580,-500.0,0.00020995,2]
[346143178,1734744639589,-500.0,0.00020995,2]
[346143181,1734744639598,-500.0,0.00020995,2]
[346143183,1734744639608,-500.0,0.00020995,2]
[346143185,1734744639617,-500.0,0.00020995,2]
[346143187,1734744639626,-243.58443432,0.00020995,2]
[346143189,1734744639635,-500.0,0.00020995,2]
[346143191,1734744639645,-500.0,0.00020995,2]
[346143193,1734744639654,-500.0,0.00020995,2]
[346143194,1734744639663,-705.23,0.00020995,2]
[346143197,1734744639673,-500.0,0.00020995,2]
[346143199,1734744639683,-500.0,0.00020995,2]
[346143201,1734744639692,-500.0,0.00020995,2]
[346143203,1734744639702,-515.10840544,0.00020995,2]
[346143205,1734744639712,-500.0,0.00020995,2]
[346143207,1734744639721,-500.0,0.00020995,2]
[346143209,1734744639730,-504.87990994,0.00020995,2]
[346143211,1734744639741,-500.0,0.00020995,2]
[346143213,1734744639751,-203.74602787,0.00020995,2]
[346143215,1734744639760,-500.0,0.00020995,2]
[346143217,1734744639770,-500.0,0.00020995,2]
[346143219,1734744639779,-500.0,0.00020995,2]
[346143221,1734744639788,-500.0,0.00020995,2]
[346143223,1734744639797,-500.0,0.00020995,2]
[346143225,1734744639806,-500.0,0.00020995,2]
[346143227,1734744639815,-500.0,0.00020995,2]
[346143229,1734744639824,-500.0,0.00020995,2]
[346143231,1734744639833,-500.0,0.00020995,2]
[346143233,1734744639843,-500.0,0.00020995,2]
[346143235,1734744639852,-500.0,0.00020995,2]
[346143237,1734744639861,-500.0,0.00020995,2]
[346143239,1734744639869,-501.41823696,0.00020995,2]
[346143241,1734744639878,-500.0,0.00020995,2]
[346143243,1734744639887,-536.77117958,0.00020995,2]
[346143245,1734744639896,-232.28857334,0.00020995,2]
[346143544,1734744643116,-126.4383101,0.00020991,2]
[346144272,1734744696684,370.758,0.0001995,2]
[346144273,1734744742636,262.5,0.0002,2]
[346144276,1734744875235,157.965618,0.00013973,2]
[346144280,1734744942899,25270.360661,0.00025,60]
[346144281,1734745069305,355.412,0.0001995,2]
[346144283,1734745137113,340.596,0.0001995,2]
[346144284,1734745234557,7897.159378,0.00019962,2]
[346144285,1734745307290,2000.0,0.00025,60]
[346144286,1734745384331,1023.59540662,0.0002,2]
[346144287,1734745414066,100000.0,0.00024,60]
[346144289,1734745503216,19265.17210972,0.00025,60]
[346144290,1734745510991,257.494557,0.00019905,2]
[346144291,1734745532335,-196.78934395,0.00020154,2]
[346144292,1734745532360,-1209.57579811,0.00020154,2]
[346144293,1734745581187,326.262,0.0001995,2]
[346144294,1734745648596,312.886,0.0001995,2]
[346144295,1734745650163,-889.20521109,0.00020154,2]
[346144296,1734745650186,-83.5726383,0.000205,2]
[346144297,1734745717543,299.71,0.0001995,2]
[346144299,1734745749315,157.965618,0.00013973,2]
[346144300,1734745785261,287.413,0.0001995,2]
[346144313,1734745832379,-1924.8773617,0.000205,2]
[346144315,1734745832390,-1000.0,0.000208,2]
[346144317,1734745832401,-1000.0,0.000208,3]
[346144319,1734745832411,-1948.20157887,0.00020885,2]
[346144321,1734745832421,-152.84446523,0.0002089,2]
[346144323,1734745832435,-666.0,0.00020895,2]
[346144325,1734745832445,-2099.36314082,0.000209,2]
[346144327,1734745832576,-124.83759805,0.000209,2]
[346144328,1734745832585,-300.0,0.00020983,2]
[346144329,1734745832595,-300.0,0.00020983,2]
[346144330,1734745832604,-500.0,0.00020983,2]
[346144331,1734745832613,-767.57,0.00020983,2]
[346144332,1734745832622,-281.30118491,0.00020983,2]
[346144335,1734745838817,-666.0,0.00020891,2]
[346144336,1734745838827,-62.43546001,0.00020983,2]
[346144595,1734745977894,275.195,0.0001995,2]
[346144596,1734746044644,264.194,0.0001995,2]
[346144603,1734746204854,185.596281,0.00018963,2]
[346144604,1734746377565,257.4945586,0.00019946,2]
[346144605,1734746388706,789.0752573,0.00019946,2]
[346144608,1734746486422,252.815,0.0001995,2]
[346144609,1734746546992,242.362,0.0001995,2]
[346144610,1734746569078,177.863976,0.0001967,2]
[346144611,1734746736133,-227.0,0.0002084,3]
[346144612,1734746736155,-1228.87635917,0.00020878,2]
[346144613,1734746834151,-956.57182543,0.00020883,2]
[346144618,1734747032913,-824.42817457,0.00020883,2]
[346144619,1734747032923,-616.80257782,0.00020889,2]
[346144620,1734747032935,-49.19742218,0.00020889,2]
[346144621,1734747032945,-2001.78066501,0.000209,2]
[346144622,1734747032954,-500.0,0.00020973,2]
[346144623,1734747032964,-500.0,0.00020973,2]
[346144624,1734747032974,-500.0,0.00020973,2]
[346144625,1734747032984,-300.0,0.00020973,2]
[346144626,1734747032994,-300.0,0.00020974,2]
[346144627,1734747033004,-500.0,0.00020975,2]
[346144628,1734747033013,-500.0,0.00020975,2]
[346144629,1734747033023,-500.0,0.00020975,2]
[346144630,1734747033037,-735.59,0.00020975,2]
[346144631,1734747033047,-29966.72616122,0.00020975,2]
[346144660,1734747053369,232.552,0.0001995,2]
[346144661,1734747054889,8842.986404,0.0001998,2]
[346144662,1734747119279,222.522,0.0001994,2]
[346144664,1734747142706,157.965618,0.00013973,2]
[346144665,1734747189666,213.276,0.0001994,2]
[346144666,1734747256737,204.577,0.0001994,2]
[346144667,1734747298322,170.313238,0.00019974,2]
[346144673,1734747885402,195.655,0.0001994,2]
[346144674,1734747913026,3859.13565714,0.0002,2]
[346144678,1734747956120,-1139.90457028,0.000205,2]
[346144681,1734747990878,500.0,0.00025,120]
[346144683,1734748046256,-860.09542972,0.000205,2]
[346144684,1734748046280,-127.05776761,0.00020672,2]
[346144707,1734748232819,-250.81461149,0.00020672,2]
[346144708,1734748232829,-119.15118099,0.00020672,2]
[346144709,1734748232838,-196.03863275,0.00020772,2]
[346144710,1734748232848,-852.75645458,0.00020772,2]
[346144711,1734748232857,-197.31284846,0.00020872,2]
[346144712,1734748232867,-544.76580574,0.0002088,2]
[346144713,1734748232876,-229.0,0.0002089,3]
[346144714,1734748232885,-1801.6025985,0.000209,2]
[346144715,1734748232895,-300.0,0.00020968,2]
[346144716,1734748232905,-87.86228315,0.00020968,2]
[346144717,1734748232917,-212.13771685,0.00020968,2]